fUSD/lending_fUSD_20250405
["ID","MTS","AMOUNT","RATE_DAILY","PERIOD"]
[357186685,1743873038311,-500.0,0.0003041,2]
[357186686,1743873038321,-500.0,0.0003041,2]
[357186687,1743873038330,-500.0,0.0003041,2]
[357186688,1743873038340,-519.05196203,0.0003041,2]
[357186689,1743873038350,-303.5789984,0.0003041,2]
[357186690,1743873038360,-500.0,0.0003041,2]
[357186691,1743873038370,-500.0,0.0003041,2]
[357186692,1743873038380,-512.50027143,0.0003041,2]
[357186693,1743873038389,-500.0,0.0003041,2]
[357186694,1743873038399,-500.0,0.0003041,2]
[357186695,1743873038408,-1582.96,0.0003041,2]
[357186696,1743873038417,-500.0,0.0003041,2]
[357186697,1743873038426,-500.0,0.0003041,2]
[357186698,1743873038435,-500.0,0.0003041,2]
[357186699,1743873038445,-500.0,0.0003041,2]
[357186700,1743873038454,-587.09,0.0003041,2]
[357186701,1743873038463,-573.04108844,0.0003041,2]
[357186702,1743873038472,-500.0,0.0003041,2]
[357186703,1743873038482,-500.0,0.0003041,2]
[357186704,1743873038492,-500.0,0.0003041,2]
[357186705,1743873038501,-500.0,0.0003041,2]
[357186706,1743873038510,-884.09,0.00030427,2]
[357186707,1743873038519,-156.73,0.0003048,2]
[357186708,1743873038528,-713.78,0.00030683,2]
[357186709,1743873038539,-500.0,0.00030683,2]
[357186710,1743873038548,-500.0,0.00030683,2]
[357186711,1743873038557,-500.0,0.00030683,2]
[357186712,1743873038566,-500.0,0.00030683,2]
[357186713,1743873038575,-500.0,0.00030683,2]
[357186714,1743873038584,-500.0,0.00030683,2]
[357186715,1743873038595,-504.494281,0.00030683,2]
[357186716,1743873038604,-500.0,0.00030683,2]
[357186717,1743873038613,-500.0,0.00030683,2]
[357186718,1743873038623,-559.71,0.00030683,2]
[357186719,1743873038632,-616.46925663,0.00030683,2]
[357186720,1743873038642,-500.0,0.00030683,2]
[357186721,1743873038651,-443.86399886,0.00030683,2]
[357186722,1743873038661,-500.0,0.00030683,2]
[357186723,1743873038670,-500.0,0.00030683,2]
[357186724,1743873038680,-510.00650528,0.00030683,2]
[357186725,1743873038690,-500.0,0.00030683,2]
[357186726,1743873038699,-500.0,0.00030683,2]
[357186727,1743873038709,-512.1328449,0.00030683,2]
[357186728,1743873038719,-500.0,0.00030683,2]
[357186729,1743873038729,-500.0,0.00030683,2]
[357186730,1743873038738,-634.89,0.00030683,2]
[357186731,1743873038747,-1542.85,0.00030683,2]
[357186732,1743873038757,-500.0,0.00030683,2]
[357186733,1743873038766,-500.0,0.00030683,2]
[357186734,1743873038776,-500.0,0.00030683,2]
[357186735,1743873038785,-561.96,0.00030683,2]
[357186736,1743873038795,-521.95804604,0.00030683,2]
[357186737,1743873038805,-500.0,0.00030683,2]
[357186738,1743873038815,-500.0,0.00030683,2]
[357186739,1743873038825,-571.13,0.00030683,2]
[357186740,1743873038837,-589.6,0.00030683,2]
[357186741,1743873038847,-500.0,0.00030683,2]
[357186742,1743873038856,-500.0,0.00030683,2]
[357186743,1743873038865,-500.0,0.00030683,2]
[357186744,1743873038875,-893.87,0.00030683,2]
[357186745,1743873039058,-492.68113409,0.00030683,2]
[357186746,1743873039068,-500.0,0.00030683,2]
[357186747,1743873039078,-500.0,0.00030683,2]
[357186748,1743873039088,-504.87944859,0.00030683,2]
[357186749,1743873039097,-500.0,0.00030683,2]
[357186750,1743873039107,-507.10507535,0.00030683,2]
[357186751,1743873039117,-516.19949884,0.00030683,2]
[357186752,1743873039127,-500.0,0.00030683,2]
[357186753,1743873039136,-500.0,0.00030683,2]
[357186754,1743873039146,-500.0,0.00030683,2]
[357186755,1743873039155,-500.0,0.00030683,2]
[357186756,1743873039164,-500.0,0.00030683,2]
[357186757,1743873039174,-500.0,0.00030683,2]
[357186758,1743873039183,-500.0,0.00030683,2]
[357186759,1743873039192,-500.0,0.00030683,2]
[357186760,1743873039202,-500.0,0.00030683,2]
[357186761,1743873039212,-500.0,0.00030683,2]
[357186762,1743873039221,-500.0,0.00030683,2]
[357186763,1743873039231,-503.38515947,0.00030683,2]
[357186764,1743873039240,-500.0,0.00030683,2]
[357186765,1743873039250,-500.0,0.00030683,2]
[357186766,1743873039259,-500.0,0.00030683,2]
[357186767,1743873039268,-500.0,0.00030683,2]
[357186768,1743873039278,-500.0,0.00030683,2]
[357186769,1743873039287,-500.0,0.00030683,2]
[357186770,1743873039296,-1296.98,0.00030683,2]
[357186771,1743873039305,-455.66777659,0.00030683,2]
[357186772,1743873039315,-938.94,0.00030683,2]
[357186773,1743873039324,-500.0,0.00030683,2]
[357186774,1743873039334,-505.37195443,0.00030683,2]
[357186775,1743873039344,-862.42,0.00030683,2]
[357186776,1743873039354,-500.0,0.00030683,2]
[357186777,1743873039363,-2000.0,0.00030683,2]
[357186778,1743873039372,-500.0,0.00030683,2]
[357186779,1743873039382,-500.0,0.00030683,2]
[357186780,1743873039391,-500.0,0.00030683,2]
[357186781,1743873039401,-543.84,0.00030683,2]
[357186782,1743873039410,-548.57018206,0.00030683,2]
[357186783,1743873039419,-500.0,0.00030683,2]
[357186784,1743873039428,-500.0,0.00030683,2]
[357186785,1743873039437,-514.11558137,0.00030683,2]
[357186786,1743873039446,-500.0,0.00030683,2]
[357186787,1743873039455,-500.0,0.00030683,2]
[357186788,1743873039464,-500.0,0.00030683,2]
[357186789,1743873039474,-1490.76,0.00030683,2]
[357186790,1743873039484,-500.0,0.00030683,2]
[357186791,1743873039493,-508.38329292,0.00030683,2]
[357186792,1743873039503,-464.63554163,0.00030683,2]
[357186793,1743873039511,-500.0,0.00030683,2]
[357186794,1743873039521,-500.0,0.00030683,2]
[357186796,1743873039531,-500.0,0.00030683,2]
[357186797,1743873039540,-504.2921904,0.00030683,2]
[357186798,1743873039549,-500.0,0.00030684,2]
[357186799,1743873039559,-500.0,0.00030684,2]
[357186800,1743873039567,-500.0,0.00030684,2]
[357186801,1743873039577,-596.8811798,0.00030684,2]
[357186802,1743873039586,-500.38977057,0.00030684,2]
[357186803,1743873039595,-500.0,0.00030684,2]
[357186804,1743873039605,-526.723128,0.00030684,2]
[357186805,1743873039615,-500.0,0.00030684,2]
[357186806,1743873039625,-515.88244108,0.00030684,2]
[357186807,1743873039634,-500.70730985,0.00030684,2]
[357186808,1743873039643,-500.34773341,0.00030684,2]
[357186809,1743873039653,-500.0,0.00030684,2]
[357186810,1743873039662,-1582.96,0.00030684,2]
[357186811,1743873039671,-500.0,0.00030684,2]
[357186812,1743873039680,-500.0,0.00030684,2]
[357186813,1743873039690,-500.0,0.00030684,2]
[357186814,1743873039699,-500.0,0.00030684,2]
[357186815,1743873039709,-587.09,0.00030684,2]
[357186816,1743873039718,-500.0,0.00030684,2]
[357186817,1743873039727,-500.0,0.00030684,2]
[357186818,1743873039737,-500.0,0.00030684,2]
[357186819,1743873039746,-500.0,0.00030684,2]
[357186820,1743873039755,-150.0,0.00030749,7]
[357186821,1743873039764,-2246.28872007,0.00030753,2]
[357186822,1743873039773,-500.0,0.00030853,2]
[357186823,1743873039783,-603.48118797,0.00030853,2]
[357186824,1743873039792,-500.0,0.00030853,2]
[357186825,1743873039802,-500.0,0.00030853,2]
[357186826,1743873039811,-508.76,0.00030853,2]
[357186827,1743873039821,-718.92,0.00030853,2]
[357186828,1743873039834,-526.45,0.00030853,2]
[357186829,1743873039843,-500.0,0.00030853,2]
[357186830,1743873039853,-9386.71,0.00030853,2]
[357186831,1743873039863,-1616.33,0.00030853,2]
[357186832,1743873039873,-647.63,0.00030853,2]
[357186833,1743873039882,-857.45,0.00030853,2]
[357186834,1743873039892,-810.0,0.00030853,2]
[357186835,1743873039902,-500.0,0.00030853,2]
[357186836,1743873039911,-1387.9,0.00030853,2]
[357186837,1743873039920,-6056.29,0.00030853,2]
[357186838,1743873039930,-2734.64,0.00030853,2]
[357186839,1743873039939,-500.0,0.00030853,2]
[357186840,1743873039948,-11280.77,0.00030853,2]
[357186841,1743873039957,-500.0,0.00030853,2]
[357186842,1743873039966,-23900.0,0.00030854,2]
[357186843,1743873039977,-920.99864036,0.00030857,23]
[357186844,1743873039986,-500.0,0.00030931,2]
[357186845,1743873039996,-4673.6,0.00030931,2]
[357186846,1743873040005,-256.16774745,0.00030931,2]
[357186847,1743873040015,-500.0,0.00030931,2]
[357186848,1743873040026,-500.0,0.00030931,2]
[357186849,1743873040035,-15077.19982848,0.00030932,2]
[357186850,1743873040045,-19527.9993268,0.00030948,2]
[357186851,1743873040054,-500.0,0.00030956,2]
[357186852,1743873040063,-761.88,0.00030956,2]
[357186853,1743873040073,-778.79,0.00030956,2]
[357186854,1743873040083,-500.0,0.00030956,2]
[357186855,1743873040093,-500.0,0.00030956,2]
[357186856,1743873040103,-500.0,0.00030956,2]
[357186857,1743873040113,-503.28,0.00030956,2]
[357186858,1743873040122,-431.69504928,0.00030956,2]
[357186859,1743873040131,-500.0,0.00030956,2]
[357186860,1743873040140,-500.0,0.00030956,2]
[357186861,1743873040150,-713.78,0.00030957,2]
[357186862,1743873040160,-156.16434652,0.00030957,2]
[357186863,1743873040169,-500.0,0.00030957,2]
[357186864,1743873040179,-500.0,0.00030957,2]
[357186865,1743873040187,-500.0,0.00030957,2]
[357186866,1743873040197,-500.0,0.00030957,2]
[357186867,1743873040206,-500.0,0.00030957,2]
[357186868,1743873040215,-500.0,0.00030957,2]
[357186869,1743873040224,-500.0,0.00030957,2]
[357186870,1743873040234,-559.71,0.00030957,2]
[357186871,1743873040244,-528.03561173,0.00030957,2]
[357186872,1743873040254,-500.0,0.00030957,2]
[357186873,1743873040263,-500.0,0.00030957,2]
[357186874,1743873040272,-500.0,0.00030957,2]
[357186875,1743873040281,-500.0,0.00030957,2]
[357186876,1743873040291,-500.0,0.00030957,2]
[357186877,1743873040300,-530.03073223,0.00030957,2]
[357186878,1743873040309,-634.89,0.00030957,2]
[357186879,1743873040319,-1542.85,0.00030957,2]
[357186880,1743873040328,-504.87230279,0.00030957,2]
[357186881,1743873040337,-500.0,0.00030957,2]
[357186882,1743873040347,-500.0,0.00030957,2]
[357186883,1743873040356,-561.96,0.00030957,2]
[357186884,1743873040366,-533.86291561,0.00030957,2]
[357186885,1743873040375,-500.0,0.00030957,2]
[357186886,1743873040384,-571.13,0.00030957,2]
[357186887,1743873040394,-500.0,0.00030957,2]
[357186888,1743873040403,-500.0,0.00030957,2]
[357186889,1743873040413,-500.0,0.00030957,2]
[357186890,1743873040422,-562.67591789,0.00030957,2]
[357186891,1743873040431,-500.0,0.00030957,2]
[357186892,1743873040441,-500.0,0.00030957,2]
[357186893,1743873040450,-500.0,0.00030957,2]
[357186894,1743873040459,-500.0,0.00030957,2]
[357186895,1743873040468,-500.0,0.00030957,2]
[357186896,1743873040477,-500.0,0.00030957,2]
[357186897,1743873040487,-500.0,0.00030957,2]
[357186898,1743873040495,-500.0,0.00030957,2]
[357186899,1743873040504,-532.87314997,0.00030957,2]
[357186900,1743873040514,-500.0,0.00030957,2]
[357186901,1743873040523,-500.0,0.00030957,2]
[357186902,1743873040533,-500.0,0.00030957,2]
[357186903,1743873040542,-500.0,0.00030957,2]
[357186904,1743873040551,-500.0,0.00030957,2]
[357186905,1743873040560,-500.0,0.00030957,2]
[357186906,1743873040569,-500.0,0.00030957,2]
[357186907,1743873040578,-500.0,0.00030957,2]
[357186908,1743873040587,-1296.98,0.00030957,2]
[357186909,1743873040596,-938.94,0.00030957,2]
[357186910,1743873040606,-500.0,0.00030957,2]
[357186911,1743873040615,-862.42,0.00030957,2]
[357186912,1743873040625,-500.0,0.00030957,2]
[357186913,1743873040634,-2000.0,0.00030957,2]
[357186914,1743873040644,-500.0,0.00030957,2]
[357186915,1743873040653,-500.0,0.00030957,2]
[357186916,1743873040663,-500.0,0.00030957,2]
[357186917,1743873040672,-543.84,0.00030957,2]
[357186918,1743873040681,-500.0,0.00030957,2]
[357186919,1743873040690,-500.0,0.00030957,2]
[357186920,1743873040700,-266.82689442,0.00030957,2]
[357186921,1743873040709,-500.0,0.00030957,2]
[357186922,1743873040719,-500.0,0.00030957,2]
[357186923,1743873040728,-1490.76,0.00030957,2]
[357186924,1743873040738,-500.0,0.00030957,2]
[357186925,1743873040747,-500.0,0.00030957,2]
[357186926,1743873040756,-500.0,0.00030957,2]
[357186927,1743873040765,-500.0,0.00030957,2]
[357186928,1743873040774,-151.0,0.00030958,7]
[357186929,1743873040783,-151.0,0.00030958,7]
[357186930,1743873040793,-500.0,0.00030958,2]
[357186931,1743873040803,-416.74689419,0.00030958,2]
[357186932,1743873040812,-552.51314024,0.00030958,2]
[357186933,1743873040821,-540.45490497,0.00030958,2]
[357186934,1743873040836,-393.64864925,0.00030958,2]
[357186935,1743873040848,-500.60679796,0.00030958,2]
[357186936,1743873040861,-1582.96,0.00030958,2]
[357186937,1743873040875,-500.0,0.00030958,2]
[357186938,1743873040888,-500.0,0.00030958,2]
[357186939,1743873040898,-500.0,0.00030958,2]
[357186940,1743873040910,-500.0,0.00030958,2]
[357186941,1743873040922,-587.09,0.00030958,2]
[357186942,1743873040934,-500.0,0.00030958,2]
[357186943,1743873040945,-500.0,0.00030958,2]
[357186944,1743873040957,-500.0,0.00030958,2]
[357186945,1743873040969,-500.0,0.00030958,2]
[357186946,1743873040982,-500.0,0.00031127,2]
[357186947,1743873040994,-500.0,0.00031127,2]
[357186948,1743873041006,-500.0,0.00031127,2]
[357186949,1743873041018,-508.76,0.00031127,2]
[357186950,1743873041030,-718.92,0.00031127,2]
[357186951,1743873041041,-526.45,0.00031127,2]
[357186952,1743873041051,-500.0,0.00031127,2]
[357186953,1743873041061,-9386.71,0.00031127,2]
[357186954,1743873041073,-1616.33,0.00031127,2]
[357186955,1743873041085,-647.63,0.00031127,2]
[357186956,1743873041097,-857.45,0.00031127,2]
[357186957,1743873041108,-810.0,0.00031127,2]
[357186958,1743873041120,-500.0,0.00031127,2]
[357186959,1743873041132,-1387.9,0.00031127,2]
[357186960,1743873041144,-6056.29,0.00031127,2]
[357186961,1743873041156,-2734.64,0.00031127,2]
[357186962,1743873041168,-500.0,0.00031127,2]
[357186963,1743873041180,-11280.77,0.00031127,2]
[357186964,1743873041192,-500.0,0.00031127,2]
[357186965,1743873041204,-500.0,0.00031205,2]
[357186966,1743873041217,-4673.6,0.00031205,2]
[357186967,1743873041228,-500.0,0.00031205,2]
[357186968,1743873041240,-500.0,0.00031205,2]
[357186969,1743873041252,-19527.9993268,0.00031221,2]
[357186970,1743873041264,-19527.9993268,0.00031222,2]
[357186971,1743873041275,-500.0,0.0003123,2]
[357186972,1743873041286,-761.88,0.0003123,2]
[357186973,1743873041297,-778.79,0.0003123,2]
[357186974,1743873041309,-500.0,0.0003123,2]
[357186975,1743873041322,-211.59099388,0.0003123,2]
[357186976,1743873041334,-500.0,0.0003123,2]
[357186977,1743873041344,-503.28,0.0003123,2]
[357186978,1743873041356,-500.0,0.0003123,2]
[357186979,1743873041367,-500.0,0.0003123,2]
[357186980,1743873041379,-713.78,0.00031231,2]
[357186981,1743873041389,-500.0,0.00031231,2]
[357186982,1743873041400,-500.0,0.00031231,2]
[357186983,1743873041411,-500.0,0.00031231,2]
[357186984,1743873041422,-500.0,0.00031231,2]
[357186985,1743873041435,-233.45861766,0.00031231,2]
[357186986,1743873041449,-500.0,0.00031231,2]
[357186987,1743873041459,-500.0,0.00031231,2]
[357186988,1743873041469,-559.71,0.00031231,2]
[357186989,1743873041479,-500.0,0.00031231,2]
[357186990,1743873041490,-500.0,0.00031231,2]
[357186991,1743873041500,-500.0,0.00031231,2]
[357186992,1743873041512,-500.0,0.00031231,2]
[357186993,1743873041523,-500.0,0.00031231,2]
[357186994,1743873041535,-634.89,0.00031231,2]
[357186995,1743873041546,-1542.85,0.00031231,2]
[357186996,1743873041556,-500.0,0.00031231,2]
[357186997,1743873041566,-500.0,0.00031231,2]
[357186998,1743873041577,-561.96,0.00031231,2]
[357186999,1743873041587,-500.0,0.00031231,2]
[357187000,1743873041598,-571.13,0.00031231,2]
[357187001,1743873041608,-589.6,0.00031231,2]
[357187002,1743873041619,-500.0,0.00031231,2]
[357187003,1743873041629,-500.0,0.00031231,2]
[357187004,1743873041640,-500.0,0.00031231,2]
[357187005,1743873041650,-893.87,0.00031231,2]
[357187006,1743873041661,-500.0,0.00031231,2]
[357187007,1743873041672,-500.0,0.00031231,2]
[357187008,1743873041683,-524.57378483,0.00031231,2]
[357187009,1743873041693,-500.0,0.00031231,2]
[357187010,1743873041705,-500.0,0.00031231,2]
[357187011,1743873041716,-500.0,0.00031231,2]
[357187012,1743873041727,-500.0,0.00031231,2]
[357187013,1743873041738,-500.0,0.00031231,2]
[357187014,1743873041750,-500.0,0.00031231,2]
[357187015,1743873041762,-539.3872193,0.00031231,2]
[357187016,1743873041773,-500.0,0.00031231,2]
[357187017,1743873041783,-500.0,0.00031231,2]
[357187018,1743873041794,-500.0,0.00031231,2]
[357187019,1743873041805,-500.0,0.00031231,2]
[357187020,1743873041817,-500.0,0.00031231,2]
[357187021,1743873041831,-500.0,0.00031231,2]
[357187022,1743873041843,-1296.98,0.00031231,2]
[357187023,1743873041854,-938.94,0.00031231,2]
[357187024,1743873041864,-500.0,0.00031231,2]
[357187025,1743873041875,-862.42,0.00031231,2]
[357187026,1743873041886,-500.0,0.00031231,2]
[357187027,1743873041898,-2000.0,0.00031231,2]
[357187028,1743873041908,-500.0,0.00031231,2]
[357187029,1743873041918,-500.0,0.00031231,2]
[357187030,1743873041928,-500.0,0.00031231,2]
[357187031,1743873041939,-543.84,0.00031231,2]
[357187032,1743873041950,-500.0,0.00031231,2]
[357187033,1743873041960,-500.0,0.00031231,2]
[357187034,1743873041971,-500.0,0.00031231,2]
[357187035,1743873041981,-500.0,0.00031231,2]
[357187036,1743873041992,-1490.76,0.00031231,2]
[357187037,1743873042002,-500.0,0.00031231,2]
[357187038,1743873042012,-500.0,0.00031231,2]
[357187039,1743873042023,-500.0,0.00031231,2]
[357187040,1743873042033,-500.0,0.00031231,2]
[357187041,1743873042044,-1582.96,0.00031232,2]
[357187042,1743873042055,-500.0,0.00031232,2]
[357187043,1743873042066,-500.0,0.00031232,2]
[357187044,1743873042076,-500.0,0.00031232,2]
[357187045,1743873042087,-500.0,0.00031232,2]
[357187046,1743873042097,-587.09,0.00031232,2]
[357187047,1743873042108,-500.0,0.00031232,2]
[357187048,1743873042119,-500.0,0.00031232,2]
[357187049,1743873042130,-500.0,0.00031232,2]
[357187050,1743873042140,-166.66,0.00031342,2]
[357187051,1743873042150,-500.0,0.00031401,2]
[357187052,1743873042161,-500.0,0.00031401,2]
[357187053,1743873042172,-500.0,0.00031401,2]
[357187054,1743873042182,-508.76,0.00031401,2]
[357187055,1743873042192,-718.92,0.00031401,2]
[357187056,1743873042204,-526.45,0.00031401,2]
[357187057,1743873042214,-500.0,0.00031401,2]
[357187058,1743873042224,-9386.71,0.00031401,2]
[357187059,1743873042235,-1616.33,0.00031401,2]
[357187060,1743873042246,-647.63,0.00031401,2]
[357187061,1743873042257,-857.45,0.00031401,2]
[357187062,1743873042267,-810.0,0.00031401,2]
[357187063,1743873042277,-500.0,0.00031401,2]
[357187064,1743873042287,-1387.9,0.00031401,2]
[357187065,1743873042298,-6056.29,0.00031401,2]
[357187066,1743873042309,-2734.64,0.00031401,2]
[357187067,1743873042319,-299.19015987,0.00031401,2]
[357187068,1743873042330,-11280.77,0.00031401,2]
[357187069,1743873042340,-500.0,0.00031401,2]
[357187070,1743873042351,-500.0,0.00031479,2]
[357187071,1743873042362,-4673.6,0.00031479,2]
[357187072,1743873042372,-500.0,0.00031479,2]
[357187073,1743873042383,-500.0,0.00031479,2]
[357187074,1743873042395,-39055.9986536,0.00031495,2]
[357187075,1743873042406,-11011.4082863,0.00031496,2]
[357187076,1743873042416,-500.0,0.00031504,2]
[357187077,1743873042427,-761.88,0.00031504,2]
[357187078,1743873042438,-778.79,0.00031504,2]
[357187079,1743873042449,-500.0,0.00031504,2]
[357187081,1743873042459,-500.0,0.00031504,2]
[357187083,1743873042470,-503.28,0.00031504,2]
[357187085,1743873042481,-610.38709865,0.00031504,2]
[357187087,1743873042492,-500.0,0.00031504,2]
[357187089,1743873042503,-713.78,0.00031505,2]
[357187091,1743873042514,-500.0,0.00031505,2]
[357187093,1743873042525,-500.0,0.00031505,2]
[357187095,1743873042536,-372.68010952,0.00031505,2]
[357187106,1743873042937,-206.70923375,0.00031505,2]
[357187108,1743873042948,-500.0,0.00031505,2]
[357187110,1743873042957,-500.0,0.00031505,2]
[357187112,1743873042967,-500.0,0.00031505,2]
[357187113,1743873042976,-559.71,0.00031505,2]
[357187114,1743873042985,-112.02476807,0.00031505,2]
[357187116,1743873043136,-387.97523193,0.00031505,2]
[357187117,1743873043145,-440.13476807,0.00031505,2]
[357187118,1743873043157,-59.86523193,0.00031505,2]
[357187119,1743873043167,-500.0,0.00031505,2]
[357187120,1743873043177,-453.98488737,0.00031505,2]
[357187121,1743873043186,-500.0,0.00031505,2]
[357187122,1743873043195,-634.89,0.00031505,2]
[357187123,1743873043204,-339.16280634,0.00031505,2]
[357187132,1743873045588,-594.82,0.00030931,2]
[357187133,1743873045598,-59.32648305,0.00031205,2]
[357187134,1743873045796,-535.49351695,0.00031205,2]
[357187135,1743873045806,-398.81260781,0.00031479,2]
[357187840,1743873070341,-167.8371,0.00030683,2]
[357187841,1743873080310,-175.14,0.00030683,2]
[357187842,1743873088462,-163.21731511,0.00030683,2]
[357187843,1743873088486,-1.11260341,0.00030683,2]
[357187844,1743873089048,-164.32991852,0.00030683,2]
[357187845,1743873104604,-155.76,0.00030683,2]
[357187846,1743873107871,-167.8371,0.00030683,2]
[357187847,1743873111735,-10.96037807,0.00030683,2]
[357187848,1743873111759,-426.27962193,0.00030683,2]
[357187849,1743873147689,-166.99,0.00019,2]
[357187850,1743873153916,-83.01,0.00019,2]
[357187851,1743873153940,-115.63,0.00021,2]
[357187852,1743873195292,109015.05133128,0.00036125,30]
[357187854,1743873702968,-184.37,0.00021,2]
[357187855,1743873702992,-355.28920905,0.00021,2]
[357187856,1743873722145,150.0,0.00036123,30]
[357187857,1743873801275,150.0,0.00025,14]
[357187858,1743873909471,-171.55554644,0.0002,2]
[357187859,1743873939838,-220.36884451,0.000199,2]
[357187860,1743873962066,-164.13,0.000199,2]
[357187861,1743873968480,-157.98384103,0.000199,2]
[357187862,1743873972381,-62.59441446,0.000199,2]
[357187863,1743873972406,-95.78998969,0.00019973,2]
[357187864,1743873995232,-158.57130424,0.00019973,2]
[357187866,1743874022871,-194.83188909,0.00019973,2]
[357187867,1743874026787,-104.71541962,0.00019973,2]
[357187868,1743874026810,-53.88107902,0.00019973,2]
[357187869,1743874031663,-201.88251824,0.00019973,2]
[357187870,1743874083098,5888.44327837,0.00015,2]
[357187871,1743874083121,10000.0,0.00015,2]
[357187872,1743874083148,10000.0,0.00015,2]
[357187873,1743874083173,10000.0,0.00015,2]
[357187874,1743874083199,10000.0,0.00015,2]
[357187875,1743874083225,10000.0,0.00015,2]
[357187876,1743874083248,10000.0,0.00015,2]
[357187877,1743874083271,10000.0,0.00015,2]
[357187878,1743874083293,10000.0,0.00015,2]
[357187879,1743874083316,10000.0,0.00015,2]
[357187880,1743874083337,10000.0,0.00015,2]
[357187881,1743874083358,10000.0,0.00015,2]
[357187882,1743874083380,10000.0,0.00015,2]
[357187883,1743874083401,10000.0,0.00015,2]
[357187884,1743874083423,10000.0,0.00015,2]
[357187885,1743874083444,10000.0,0.00015,2]
[357187886,1743874083466,10000.0,0.00015,2]
[357187887,1743874083487,10000.0,0.00015,2]
[357187888,1743874083509,10000.0,0.00015,2]
[357187889,1743874083532,10000.0,0.00015,2]
[357187890,1743874083554,10000.0,0.00015,2]
[357187891,1743874083575,10000.0,0.00015,2]
[357187892,1743874083599,10000.0,0.00015,2]
[357187893,1743874083621,10000.0,0.00015,2]
[357187894,1743874083644,10000.0,0.00015,2]
[357187895,1743874083667,10000.0,0.00015,2]
[357187896,1743874083691,10000.0,0.00015,2]
[357187897,1743874083713,10000.0,0.00015,2]
[357187898,1743874083736,10000.0,0.00015,2]
[357187899,1743874083759,10000.0,0.00015,2]
[357187900,1743874083782,10000.0,0.00015,2]
[357187901,1743874083804,10000.0,0.00015,2]
[357187902,1743874083827,10000.0,0.00015,2]
[357187903,1743874083852,10000.0,0.00015,2]
[357187904,1743874083875,10000.0,0.00015,2]
[357187905,1743874083898,10000.0,0.00015,2]
[357187906,1743874083921,10000.0,0.00015,2]
[357187907,1743874083944,10000.0,0.00015,2]
[357187908,1743874083967,10000.0,0.00015,2]
[357187909,1743874083991,10000.0,0.00015,2]
[357187910,1743874084014,10000.0,0.00015,2]
[357187911,1743874084037,10000.0,0.00015,2]
[357187912,1743874084060,10000.0,0.00015,2]
[357187913,1743874084083,10000.0,0.00015,2]
[357187914,1743874084106,10000.0,0.00015,2]
[357187915,1743874084128,10000.0,0.00015,2]
[357187916,1743874084151,10000.0,0.00015,2]
[357187917,1743874084175,10000.0,0.00015,2]
[357187918,1743874084198,10000.0,0.00015,2]
[357187919,1743874084221,10000.0,0.00015,2]
[357187920,1743874084244,10000.0,0.00015,2]
[357187921,1743874084272,10000.0,0.00015,2]